Cogmind - Beta 10 @@@ ROGUE MODE // 2020.09.10 @ 02:33:50 // Winter2019/RPGLIKE Player: Torako Result: Destroyed by G-34 Mercenary with Small Laser Performance ------------- Evolutions (1) 500 Regions Visited (4) 800 Robots Destroyed (65) 325 Value Destroyed (1271) 1271 Prototype IDs (7) 140 Alien Tech Used (0) 0 Bonus (0) 0 TOTAL SCORE: 3036 Bonus ------- None Cogmind --------- Core Integrity 0/600 Matter 300/300 Energy 248/265 System Corruption 4% Temperature Cool (8) Movement Flying (37) Location -9/Mines Parts ------- > --- POWER (1) -------- Improved Ion Engine > --- PROPULSION (3) --- Flight Unit Flight Unit > --- UTILITY (4) ------ Improved Signal Interpreter Targeting Computer Targeting Computer > --- WEAPON (3) ------- Hammer Hammer Hammer > --- INVENTORY (2) ---- Grenade Launcher Peak State ------------ > --- POWER ------------ Improved Ion Engine > --- PROPULSION ------- Flight Unit Flight Unit > --- UTILITY ---------- Improved Signal Interpreter Targeting Computer Targeting Computer Sensor Drone Bay > --- WEAPON ----------- Hammer Hammer Hammer > --- INVENTORY -------- Weapon Shielding Grenade Launcher [Rating: 19] Favorites ----------- Power Light Ion Engine Engine Light Ion Engine Propulsion Hover Unit Treads Light Treads Hover Unit Hover Unit Flight Unit Flight Unit Utility Targeting Computer Device Sensor Drone Bay Processor Targeting Computer Protection Light Armor Plating Weapon EM Pulse Gun Energy Gun EM Pulse Gun Launcher Grenade Launcher Impact Weapon Hammer Build | -11 -10 -10 -9 -9 ------- Run | Scr Mat Min Mat Min Slots Evolved 7 | . 4 1 2 . Power . | . . . . . Propulsion 2 | . 2 . . . Utility 3 | . 1 . 2 . Weapon 2 | . 1 1 . . Parts Attached 36 | 3 10 9 12 2 Power 3 | 1 1 1 . . Engine 3 | 1 1 1 . . Core . | . . . . . Reactor . | . . . . . Propulsion 7 | 1 3 2 1 . Treads 1 | 1 . . . . Leg . | . . . . . Wheel . | . . . . . Hover 3 | . 3 . . . Flight 3 | . . 2 1 . Utility 11 | . 2 3 4 2 Device 2 | . . 1 . 1 Storage . | . . . . . Processor 4 | . 1 . 3 . Hackware . | . . . . . Protection 5 | . 1 2 1 1 Artifact . | . . . . . Weapon 15 | 1 4 3 7 . Energy Gun 9 | 1 3 2 3 . Energy Cannon . | . . . . . Ballistic Gun . | . . . . . Ballistic Cannon . | . . . . . Launcher 2 | . 1 1 . . Special Weapon . | . . . . . Impact Weapon 4 | . . . 4 . Slashing Weapon . | . . . . . Piercing Weapon . | . . . . . Special Melee Weapon . | . . . . . Unidentified Prototypes 3 | . . 1 1 1 Parts Lost 4 | . . . 2 2 Power . | . . . . . Propulsion 1 | . . . . 1 Utility 2 | . . . 1 1 Weapon 1 | . . . 1 . Highest Loss Streak 1 | . . . 1 1 Average Slot Usage (%) 88 | . 82 96 89 90 Engine 11 | . 14 11 9 9 Hover 18 | . 38 24 . . Flight 10 | . . 9 19 20 Processor 14 | . 5 11 20 27 Protection 7 | . 1 11 13 6 Energy Gun 15 | . 20 26 10 . Impact Weapon 9 | . . . 17 27 Naked Turns . | . . . . . Heaviest Build 20 | 5 10 16 20 14 Greatest Support 27 | 8 23 23 27 27 Greatest Overweight (x) . | . . . . . Average Overweight (x) . | . . . . . Largest Inventory Capacity 2 | 1 2 2 2 2 Average Capacity 1 | . 1 2 2 2 Most Carried 2 | . 2 2 2 2 Average Carried 1 | . 1 2 1 1 Final Capacity 2 | 1 2 2 2 2 Final Carried 2 | . 2 2 1 1 Class Distribution -------------------- 83% | Hacker-Mutant 14% | Hacker-Gunner Dominant Class ---------------- Hacker-Mutant | -10/Materials Hacker-Mutant | -10/Mines Hacker-Mutant | -9/Materials Hacker-Mutant | -9/Mines Resources | -11 -10 -10 -9 -9 ----------- Run | Scr Mat Min Mat Min Matter Collected 589 | 230 100 80 150 29 Remotely . | . . . . . Salvage Created 1804 | 65 796 190 556 197 Parts 93 | 1 52 14 25 1 Haulers Intercepted 3 | . 2 . 1 . Recyclers Shooed 1 | . 1 . . . Parts Field Recycled . | . . . . . Retrieved Matter . | . . . . . Parts Self-Destructed . | . . . . . Prevented . | . . . . . Kills | -11 -10 -10 -9 -9 ------- Run | Scr Mat Min Mat Min Combat Hostiles Destroyed 53 | . 22 8 13 10 Melee 13 | . . . 4 9 Guns 19 | . 12 3 4 . AOE 15 | . 10 4 1 . Classes Destroyed 11 | 1 6 . 3 1 Worker 2 | . 1 . 1 . Builder 1 | . . . 1 . Hauler 3 | . 2 . 1 . Recycler 2 | 1 1 . . . Operator 1 | . 1 . . . Watcher 3 | . 2 . 1 . Swarmer 19 | . 9 6 4 . Grunt 21 | . 13 2 5 1 Duelist 1 | . . . 1 . Sentry 3 | . . . 3 . Assembled 9 | . . . . 9 Best Kill Streak 8 | 1 8 3 4 3 Combat Bots Only 8 | . 8 3 4 3 Max Kills in Single Turn 3 | 1 3 2 2 1 Gunslinging . | . . . . . Exploded 3 | . 3 2 1 . Melee 1 | . . . 1 1 Uniques/NPCs Destroyed . | . . . . . Combat | -11 -10 -10 -9 -9 -------- Run | Scr Mat Min Mat Min Damage Taken 2030 | . 530 180 761 559 Core 1518 | . 413 128 544 433 Absorbed by Shields . | . . . . . Redirected to Core 1084 | . 354 110 329 291 Core Remaining (%) 90 | 100 . 81 . . Volleys Fired 105 | 4 72 18 11 . Largest 3 | 1 2 2 3 . Hottest 135 | 40 80 80 135 . Shots Fired 162 | 4 95 30 33 . Gun 161 | 4 95 29 33 . Cannon . | . . . . . Launcher 1 | . . 1 . . Special . | . . . . . Kinetic . | . . . . . Thermal . | . . . . . Explosive 1 | . . 1 . . Electromagnetic 161 | 4 95 29 33 . Robot Hit Streak 8 | 4 5 5 8 . Robot Miss Streak 8 | . 8 2 3 . Penetration Max . | . . . . . Secondary Targets . | . . . . . Shots Hit Robots 185 | 4 50 19 74 38 Core Hits 72 | 2 35 10 15 10 Critical Hits . | . . . . . Critical Kills . | . . . . . Critical Parts Destroyed . | . . . . . Melee Attacks 121 | . . . 62 59 Impact 121 | . . . 62 59 Slashing . | . . . . . Piercing . | . . . . . Sneak Attacks 4 | . . . 3 1 Combat Hostiles 1 | . . . . 1 Follow-up Attacks 27 | . . . 14 13 Damage Inflicted 4054 | 50 1250 516 1446 792 Guns 1179 | 50 673 210 246 . Cannons . | . . . . . Explosions 977 | . 577 306 94 . Melee 1898 | . . . 1106 792 Ramming . | . . . . . Kinetic . | . . . . . Thermal 837 | . 577 166 94 . Explosive 140 | . . 140 . . Electromagnetic 1179 | 50 673 210 246 . Impact 1898 | . . . 1106 792 Slashing . | . . . . . Piercing . | . . . . . Highest Corruption 4 | . . . . 4 Average Corruption 4 | . . . . 4 Corruption Purged . | . . . . . Effects 5 | . . . . 5 Message Errors 1 | . . . . 1 Matter Fused 2 | . . . . 2 Targeting Errors 2 | . . . . 2 Overload Shots . | . . . . . Overflow Damage 188 | . . 5 140 43 Projectiles . | . . . . . Explosions 5 | . . 5 . . Melee 183 | . . . 140 43 Knockbacks 5 | . . . 2 3 Impact 5 | . . . 2 3 Kinetic . | . . . . . Secondary . | . . . . . Self-Inflicted Damage 173 | . 115 58 . . Shots 6 | . 4 2 . . Rammed . | . . . . . Targets Rammed . | . . . . . Kicked . | . . . . . Crushed . | . . . . . Highest Temperature 309 | . 162 309 241 . Average Temperature 67 | . 48 115 79 . Received Heat Transfer 435 | . 108 48 150 129 Effects 4 | . . 2 2 . Energy Bleed 1 | . . . 1 . Interference 3 | . . 2 1 . Siege Activations . | . . . . . Robots Corrupted 2 | . . 1 1 . Combat Hostiles 1 | . . 1 . . Parts Fried 10 | . 2 . 8 . Impact Corruptions 15 | . . . 10 5 Robots Melted . | . . . . . Combat Hostiles . | . . . . . Parts Melted 1 | . . . 1 . Heat Transferred 1150 | . 850 200 100 . Parts Sabotaged . | . . . . . Parts Stolen . | . . . . . Parts Stripped . | . . . . . Power Chain Reactions 14 | . 11 1 2 . Missiles Intercepted . | . . . . . Alert | -11 -10 -10 -9 -9 ------- Run | Scr Mat Min Mat Min Peak Influence 379 | 5 369 370 379 144 Initial 144 | . 3 90 144 74 Average 188 | . 187 273 197 99 Maximum Alert Level 1 | . 1 1 1 . Low Security (%) 52 | 100 46 22 50 100 Level 1 47 | . 53 77 49 . Level 2 . | . . . . . Level 3 . | . . . . . Level 4 . | . . . . . Level 5 . | . . . . . High Security . | . . . . . Max Security . | . . . . . Squads Dispatched 6 | . 5 . 1 . Investigation 5 | . 5 . . . Extermination . | . . . . . Reinforcement 1 | . . . 1 . Assault . | . . . . . Garrison . | . . . . . Intercept . | . . . . . Construction Impeded . | . . . . . Haulers Reinforced . | . . . . . Stealth | -11 -10 -10 -9 -9 --------- Run | Scr Mat Min Mat Min Distress Signals 3 | . 1 . 2 . Communications Jammed . | . . . . . Distress Signals . | . . . . . Times Spotted 74 | . 30 10 19 15 Peak Tracking Total 7 | . 5 3 7 3 Tactical Retreats 3 | . 1 1 . 1 Traps | -11 -10 -10 -9 -9 ------- Run | Scr Mat Min Mat Min Traps Triggered 3 | . 2 . 1 . Indirectly . | . . . . . Trap Hack Attempts . | . . . . . Triggered . | . . . . . Disarmed . | . . . . . Reprogrammed . | . . . . . Reused 1 | . . . . 1 Traps Extracted . | . . . . . Installed 1 | . . . . 1 Triggered 1 | . . . . 1 Machines | -11 -10 -10 -9 -9 ---------- Run | Scr Mat Min Mat Min Machines Disabled 8 | . 1 5 1 1 Max in Single Turn 4 | . 1 4 1 1 Machines Sabotaged . | . . . . . Garrisons Compromised . | . . . . . Overloaded Fab Kills . | . . . . . Fab Network Shutdowns . | . . . . . Hacking | -11 -10 -10 -9 -9 --------- Run | Scr Mat Min Mat Min Machines Accessed 15 | . 9 . 6 . Terminals 13 | . 7 . 6 . Fabricators . | . . . . . Repair Stations . | . . . . . Recycling Units 2 | . 2 . . . Scanalyzers . | . . . . . Garrison Access . | . . . . . Total Hacks 42 | . 27 . 15 . Successful 28 | . 15 . 13 . Failed 13 | . 11 . 2 . Catastrophic . | . . . . . Database Lockouts 1 | . 1 . . . Manual 23 | . 16 . 7 . Terminals 38 | . 23 . 15 . Fabricators . | . . . . . Repair Stations . | . . . . . Recycling Units 4 | . 4 . . . Scanalyzers . | . . . . . Garrison Access . | . . . . . Terminal Hacks 15 | . 7 . 8 . Record 1 | . 1 . . . Robot Analysis 1 | . 1 . . . Prototype ID Bank 2 | . 1 . 1 . Branch Access Points 1 | . . . 1 . Terminal Index 1 | . . . 1 . Unreport Threat 4 | . 2 . 2 . Hauler Manifests 2 | . 1 . 1 . Zone Layout 3 | . 1 . 2 . Fabricator Hacks . | . . . . . Repair Station Hacks . | . . . . . Recycling Unit Hacks 2 | . 2 . . . Report Inventory 2 | . 2 . . . Scanalyzer . | . . . . . Garrison Access Hacks . | . . . . . Unauthorized Hacks 11 | . 6 . 5 . Terminals 9 | . 4 . 5 . Track 2 | . . . 2 . Botnet 7 | . 4 . 3 . Fabricators . | . . . . . Repair Stations . | . . . . . Recycling Units 2 | . 2 . . . Tunnel 2 | . 2 . . . Scanalyzers . | . . . . . Garrison Access . | . . . . . Data Cores Recovered 1 | . 1 . . . Used . | . . . . . Hacking Detections 8 | . 5 . 3 . Full Trace Events 1 | . 1 . . . Feedback Events . | . . . . . Feedback Blocked . | . . . . . Robot Schematics Acquired . | . . . . . Robots Built . | . . . . . Matter . | . . . . . Time . | . . . . . Total Robot Build Rating . | . . . . . Part Schematics Acquired . | . . . . . Parts Built . | . . . . . Matter . | . . . . . Time . | . . . . . Total Part Build Rating . | . . . . . Parts Repaired . | . . . . . Time . | . . . . . Parts Recycled . | . . . . . Recycled Matter . | . . . . . Retrieved Matter . | . . . . . Retrieved Components . | . . . . . Parts Scanalyzed . | . . . . . Part Schematics Acquired . | . . . . . Parts Damaged . | . . . . . Bothacking | -11 -10 -10 -9 -9 ------------ Run | Scr Mat Min Mat Min Used RIF Installer . | . . . . . Robots Hacked . | . . . . . Non-combat . | . . . . . Combat . | . . . . . Robot Hacks Applied . | . . . . . Relay Couplers Released . | . . . . . Robots Rewired . | . . . . . Allies Hacked . | . . . . . Hacks Repelled . | . . . . . Allies | -11 -10 -10 -9 -9 -------- Run | Scr Mat Min Mat Min Total Allies 3 | . . 3 . . Largest Group 3 | . . 3 3 . Highest-Rated Group 40 | . . 40 40 . Highest-Rated Ally 16 | . . 16 16 . Total Orders . | . . . . . Ally Attacks 22 | . . . 22 . Total Damage 263 | . . . 263 . Kills 4 | . . . 4 . Allies Corrupted . | . . . . . Allies Melted . | . . . . . Intel | -11 -10 -10 -9 -9 ------- Run | Scr Mat Min Mat Min Robot Analysis Total 1 | . 1 . . . Derelict Logs Recovered 4 | . . 2 . 2 Drone Launches . | . . . . . Drone Recoveries . | . . . . . Exploration | -11 -10 -10 -9 -9 ------------- Run | Scr Mat Min Mat Min Turns Passed 1721 | 29 638 314 460 280 Spaces Moved 2251 | 33 751 475 650 342 Core 160 | 33 127 . . . Treads . | . . . . . Legs . | . . . . . Wheels . | . . . . . Hover 868 | . 624 244 . . Flight 1223 | . . 231 650 342 Fastest Speed 34 | 50 50 37 34 34 Average Speed 43 | 50 51 44 36 36 Slowest Speed 56 | 50 52 56 37 37 Overloaded Moves . | . . . . . Propulsion Burnouts . | . . . . . Robots Hopped 3 | . . . 2 1 Cave-ins Triggered . | . . . . . Exploration Rate (%) 63 | 3 97 97 61 61 Regions Visited 4 Branch Regions 2 Pre-discovered Areas 4 | . 2 1 . 1 Known Exits Taken 2 | . . 1 1 . Unknown Exits Taken 2 | 1 1 . . . Scrap Searched 2 | . . 1 . 1 Spaces Dug 6 | . . . 2 4 Terrain Destroyed 84 | . 39 27 14 4 Melee 6 | . . . 2 4 Projectile . | . . . . . AOE 78 | . 39 27 12 . Terrain Rammed . | . . . . . Walls Destroyed . | . . . . . Machines Disabled . | . . . . . Actions | -11 -10 -10 -9 -9 --------- Run | Scr Mat Min Mat Min Total 2699 | 39 903 545 777 435 Wait 145 | . 38 35 26 46 Move 2241 | 32 750 474 645 340 Hop 3 | . . . 2 1 Pick Up 5 | . 3 . 1 1 Fast Attach 26 | 3 8 5 9 1 Attach 3 | . 1 . 1 1 Detach 4 | . 1 . 2 1 Swap 8 | . 1 4 3 . Drop 20 | . 3 7 8 2 Fire 105 | 4 72 18 11 . Melee 85 | . . . 45 40 Ram . | . . . . . Kick . | . . . . . Crush . | . . . . . Escape Stasis . | . . . . . Rewire . | . . . . . Trap 1 | . . . . 1 Miscellaneous 53 | . 26 2 24 1 Route ------- -11/Scrapyard -10/Materials (discovered 4 exits: *Mat x3 / [*Min]) -10/Mines (discovered 2 exits: *Mat x2) -9/Materials (discovered 4 exits: [*Mat x2] / *Min x2) -9/Mines (discovered 1 exit: [*Mat]) History --------- Turn | Location | Event 7 | -11/Scrapyard | Discovered new exit (range 16) 30 | -11/Scrapyard | Entered Materials 111 | -10/Materials | Upgraded with Propulsion slot (x1) 112 | -10/Materials | Upgraded with Propulsion slot (x1) 261 | -10/Materials | Discovered new exit (range 11) 267 | -10/Materials | Central database locked down 294 | -10/Materials | Reached level 2 296 | -10/Materials | Upgraded with Utility slot (x1) 296 | -10/Materials | Upgraded with Weapon slot (x1) 325 | -10/Materials | Destroyed 8 combat bots 355 | -10/Materials | Build established: Hacker-Mutant 413 | -10/Materials | Discovered new exit (range 14) 539 | -10/Materials | Discovered new exit (range 3) 559 | -10/Materials | Reached level 3 607 | -10/Materials | Discovered new exit (range 11) 668 | -10/Materials | Entered Mines 669 | -10/Mines | Learned location of Storage (-8) 821 | -10/Mines | Found a damaged Exp. Sensor Array with a note attached 823 | -10/Mines | Found Prototype Device 823 | -10/Mines | Identified Exp. Sensor Array 836 | -10/Mines | Identified exit to Materials 836 | -10/Mines | Discovered exit to Materials (range 12) 840 | -10/Mines | Reached level 4 849 | -10/Mines | Assisted by bots powering up and referring to "LRC-V3" 905 | -10/Mines | Joined a pair of Derelicts in attacking an 0b10 outpost 915 | -10/Mines | Upgraded with Weapon slot (x1) 982 | -10/Mines | Entered Materials 982 | -9/Materials | Accompanied by 3 allies 984 | -9/Materials | Reached level 5 991 | -9/Materials | Upgraded with Utility slot (x1) 994 | -9/Materials | Upgraded with Utility slot (x1) 997 | -9/Materials | Discovered new exit (range 16) 1121 | -9/Materials | Discovered new exit (range 3) 1124 | -9/Materials | Reached level 6 1210 | -9/Materials | Identified exit to Mines 1230 | -9/Materials | Discovered new exit (range 16) 1316 | -9/Materials | Core integrity fell below 50% 1442 | -9/Materials | Entered Mines 1443 | -9/Mines | Assembled infested the area 1444 | -9/Mines | Reached level 7 1448 | -9/Mines | Assisted by a Guerilla fighting off Assembled 1547 | -9/Mines | Core integrity fell below 20% 1614 | -9/Mines | Discovered new exit (range 3) 1629 | -9/Mines | Found the Drone Emporium 1636 | -9/Mines | Found Prototype Device 1636 | -9/Mines | Identified Sensor Drone Bay 1688 | -9/Mines | Learned 8 Materials zone layouts 1690 | -9/Mines | Found a hidden stash of uninstalled traps 1722 | -9/Mines | Destroyed by G-34 Mercenary with Small Laser Last Messages --------------- as-57031 destroyed. Hammer follow-up attack on as-24085. as-24085 destroyed. Knocked back. Weapon Shielding destroyed. System corrupted: Matter fused (-9). as-49251 destroyed. Acquired 11 matter. Acquired 12 matter. Acquired 1 matter. Acquired derelict log, extracted data. Data stored: Materials zone layouts (x8). A stash of uninstalled traps is collected here! Acquired Explosive Trap. Dropped Explosive Trap. Installed Explosive Trap. G-34 Mercenary destroyed. Hammer follow-up attack on G-47 Trooper. G-47 Trooper destroyed. Hammer follow-up attack on G-34 Mercenary. Map ----- +----------------------------------------------------+ | | | | | | | | | | | | | | | | | | | | | ?????????????????????????????????? | | ?????????????????????????????????? | | ??????????????????????????###????? | | ?????????????????????????? ????? | | ?????????????????????????? ????? | | ?????????????????????????? ????? | | ?????????????????????????? ????? | | ??????????????????????????# #????? | | ??????????????????????????# #????? | | ?????????????????????#????# #????? | | ???????????????????? #????# #????? | | ???????????????????# #????# ##???? | | #????????????????? ?????# #???? | | ##?????????????### #?????? #???? | | ###############=! ####### #???? | | %*%!=%= t !%=|% #??# =@[ #???? | | ##[############!#??# ###*g=##???? | | ##*#??????????#%#??# #?### ##???? | | ### #????????## #### #???# #???? | | ??#!#????????# #???## #???? | | ###%######???# #####????# #???? | | **% #????? #????###### #???? | | = < #????## #????# #???? | | %= #?????# ????# #???? | | #?????# ##### ##??? | | """ """ #????## # ##?? | | """ """ #????# ##### # #?? | | """ """ #???##% #????# ## &&&#?? | | """ """ #???? k#????# #### ##?? | | ##??? #????# #??####??? | | #########"#???# #????# ####?????? | | ???###"####???# #????# #?????? | | ??##""" ##????# ####?### #?????? | | ??#" ! "#????#! # ##??# #?????? | | ??#" "#???## * #### #?????? | | ??##$ ###### != ## #?????? | | ??###""#" *=| # #?????? | | # X =! ## #?????? | | ## ### #?????? | | % ### ##?# #?????? | +----------------------------------------------------+ Best States ------------- Heat Dissipation 37 Energy Generation 12 Energy Capacity 265 Matter Stores 300 Matter Capacity 300 Sight Range 16 Robot Scan Range 20 Terrain Scan Density 10 Armor Coverage 150 Weapon Shielding 33 Evasion (%) 63 Targeting Accuracy 15 Offensive Hacking 10 Defensive Hacking 10 Item Schematics ----------------- None Robot Schematics ------------------ None Fabricated ------------ Nothing Alien Tech Used ----------------- None Achievements -------------- None Challenges ------------ None RPGLIKE | -11 -10 -10 -9 -9 --------- Run | Scr Mat Min Mat Min Levels Raised 6 | . 2 1 2 1 XP Earned 12170 | 3000 3165 1825 3530 650 XP Spent 11995 | 350 4100 1450 4595 1500 Upgrades 32 | 2 9 3 10 8 Propulsion Slot 2 | . 2 . . . Utility Slot 3 | . 1 . 2 . Weapon Slot 2 | . 1 1 . . Heat Dissipation 2 | . . 1 1 . Mass Support 3 | 1 . 1 1 . Inventory Capacity 2 | 1 1 . . . Sensor Range 10 | . . . 2 8 Melee Accuracy 4 | . . . 4 . Hack Attack % 2 | . 2 . . . Hack Defense % 2 | . 2 . . . Protomatter Created 407 | . 234 9 157 7 Integrity Restored 1047 | . 505 27 494 21 Core 914 | . 400 27 466 21 Parts 133 | . 105 . 28 . Protomatter Decayed 73 | . . . 34 39 Game ------ Seed ImprovedCryofiberLance Manual? 0 Play Time 00:28:54 Cumulative 215.7 hours Start 2020.09.10 @ 02:08:03 End 2020.09.10 @ 02:33:50 Sessions 1 Manual Loads 0 Difficulty Rogue Special Mode Winter2019/RPGLIKE Game No. 233 Rogue 233 Adventurer 0 Explorer 0 Win Type - Total 10 Types 8/0/2/0/0/0/0/0/0 Lore% 74 Gallery% 85 Achievement% 64 Wizard Run 0 Options --------- ASCII 0 Keyboard 1 Movement Numpad Keybinds 0 Fullscreen 1 Font 18/SmallcapsGlow Map View 76x50 Tactical HUD 1 Map Filters NONE Filters NONE Steam 1 RUN: 2db50b46-4a10-44aa-bf31-3674e2869f95